fUST/lending_fUST_20250408
["ID","MTS","AMOUNT","RATE_DAILY","PERIOD"]
[357472834,1744078266620,-1276.21,0.00024657,2]
[357472835,1744078266630,-500.0,0.00024657,2]
[357472836,1744078266640,-500.0,0.00024657,2]
[357472837,1744078266650,-1340.54,0.00024657,2]
[357472838,1744078266660,-2859.43,0.00024657,2]
[357472839,1744078266670,-542.01,0.00024657,2]
[357472840,1744078266680,-500.0,0.00024657,2]
[357472841,1744078266690,-2076.71,0.00024657,2]
[357472842,1744078266700,-730.76,0.00024657,2]
[357472843,1744078266710,-500.0,0.00024657,2]
[357472844,1744078266720,-500.0,0.00024657,2]
[357472845,1744078266731,-500.0,0.00024657,2]
[357472846,1744078266741,-1162.69,0.00024657,2]
[357472847,1744078266751,-500.0,0.00024657,2]
[357472848,1744078266761,-500.0,0.00024657,2]
[357472849,1744078266771,-500.0,0.00024657,2]
[357472850,1744078266781,-500.0,0.00024657,2]
[357472851,1744078266791,-1701.69,0.00024657,2]
[357472852,1744078266802,-1335.7,0.00024657,2]
[357472853,1744078266812,-1873.27,0.00024657,2]
[357472854,1744078266823,-500.0,0.00024657,2]
[357472855,1744078266833,-500.0,0.00024657,2]
[357472856,1744078266843,-521.80983,0.00024657,7]
[357472857,1744078266853,-601.69,0.00024657,2]
[357472858,1744078266863,-5360.0,0.00024657,2]
[357472859,1744078266874,-465.5857413,0.00024657,2]
[357472860,1744078266884,-521.80983,0.00024657,7]
[357472861,1744078266894,-771.06,0.00024657,2]
[357472862,1744078266904,-500.0,0.00024657,2]
[357472863,1744078266914,-500.0,0.00024657,2]
[357472864,1744078266924,-1134.35,0.00024657,2]
[357472865,1744078266934,-1513.16,0.00024657,2]
[357472866,1744078266944,-500.0,0.00024657,2]
[357472867,1744078266955,-1868.62,0.00024657,2]
[357472868,1744078266965,-1268.13,0.00024657,2]
[357472869,1744078266975,-500.0,0.00024657,2]
[357472870,1744078266985,-500.0,0.00024657,2]
[357472871,1744078266995,-727.74,0.00024657,2]
[357472872,1744078267005,-1073.11,0.00024657,2]
[357472873,1744078267015,-500.0,0.00024657,2]
[357472874,1744078267025,-1878.37,0.00024657,2]
[357472875,1744078267035,-500.0,0.00024657,2]
[357472876,1744078267045,-500.0,0.00024657,2]
[357472877,1744078267055,-1915.21,0.00024657,2]
[357472878,1744078267065,-2337.51,0.00024657,2]
[357472879,1744078267075,-561.08,0.00024657,2]
[357472880,1744078267084,-500.0,0.00024657,2]
[357472881,1744078267094,-590.76,0.00024657,2]
[357472882,1744078267104,-500.0,0.00024657,2]
[357472883,1744078267114,-1291.27,0.00024657,2]
[357472884,1744078267124,-500.0,0.00024657,2]
[357472885,1744078267133,-500.0,0.00024657,2]
[357472886,1744078267143,-1180.34,0.00024657,2]
[357472887,1744078267153,-1165.83,0.00024657,2]
[357472888,1744078267163,-2979.5,0.00024657,2]
[357472889,1744078267173,-1531.45,0.00024657,2]
[357472890,1744078267184,-500.0,0.00024657,2]
[357472891,1744078267194,-500.0,0.00024657,2]
[357472892,1744078267204,-1118.42,0.00024657,2]
[357472893,1744078267214,-1109.48,0.00024657,2]
[357472894,1744078267224,-500.0,0.00024657,2]
[357472895,1744078267234,-500.0,0.00024657,2]
[357472896,1744078267244,-500.0,0.00024657,2]
[357472897,1744078267255,-2935.5,0.00024657,2]
[357472898,1744078267265,-500.0,0.00024657,2]
[357472899,1744078267275,-500.0,0.00024657,2]
[357472900,1744078267287,-1602.29,0.00024657,2]
[357472901,1744078267298,-500.0,0.00024657,2]
[357472902,1744078267312,-602.81,0.00024657,2]
[357472903,1744078267323,-2426.96,0.00024657,2]
[357472904,1744078267334,-720.44,0.00024657,2]
[357472905,1744078267348,-159.76477025,0.00024657,2]
[357472906,1744078267358,-349.81325299,0.00024657,2]
[357472907,1744078267370,-853.03,0.00024657,2]
[357472908,1744078267381,-500.0,0.00024657,2]
[357472909,1744078267392,-1619.33,0.00024657,2]
[357472910,1744078267402,-1136.31,0.00024657,2]
[357472911,1744078267412,-1240.57,0.00024657,2]
[357472912,1744078267422,-795.94,0.00024657,2]
[357472913,1744078267432,-500.0,0.00024657,2]
[357472914,1744078267442,-500.0,0.00024657,2]
[357472915,1744078267453,-2114.72,0.00024657,2]
[357472916,1744078267463,-1182.11,0.00024657,2]
[357472917,1744078267473,-500.0,0.00024657,2]
[357472918,1744078267484,-503.7,0.00024657,2]
[357472919,1744078267494,-8763.46,0.00024657,2]
[357472920,1744078267504,-500.0,0.00024657,2]
[357472921,1744078267514,-500.0,0.00024657,2]
[357472922,1744078267524,-1130.38,0.00024657,2]
[357472923,1744078267534,-194.43115358,0.00024657,2]
[357472924,1744078267544,-500.0,0.00024657,2]
[357472925,1744078267554,-500.0,0.00024658,2]
[357472926,1744078267564,-500.0,0.00024658,2]
[357472927,1744078267574,-500.0,0.00024658,2]
[357472928,1744078267584,-500.0,0.00024658,2]
[357472929,1744078267594,-500.0,0.00024658,2]
[357472930,1744078267604,-500.0,0.00024658,2]
[357472931,1744078267614,-500.0,0.00024658,2]
[357472932,1744078267625,-500.0,0.00024658,2]
[357472933,1744078267635,-500.0,0.00024658,2]
[357472934,1744078267646,-500.0,0.00024658,2]
[357472935,1744078267656,-500.0,0.00024658,2]
[357472936,1744078267666,-500.0,0.00024658,2]
[357472937,1744078267676,-500.0,0.00024658,2]
[357472938,1744078267686,-500.0,0.00024658,2]
[357472939,1744078267696,-500.0,0.00024658,2]
[357472940,1744078267706,-500.0,0.00024658,2]
[357472941,1744078267716,-500.0,0.00024658,2]
[357472942,1744078267727,-500.0,0.00024658,2]
[357472943,1744078267738,-500.0,0.00024658,2]
[357472944,1744078267749,-500.0,0.00024658,2]
[357472945,1744078267759,-500.0,0.00024658,2]
[357472946,1744078267769,-500.0,0.00024658,2]
[357472947,1744078267779,-500.0,0.00024658,2]
[357472948,1744078267789,-500.0,0.00024658,2]
[357472949,1744078267799,-500.0,0.00024658,2]
[357472950,1744078267808,-500.0,0.00024658,2]
[357472951,1744078267819,-500.0,0.00024658,2]
[357472952,1744078267829,-500.0,0.00024658,2]
[357472953,1744078267839,-500.0,0.00024658,2]
[357472954,1744078267849,-500.0,0.00024658,2]
[357472955,1744078267859,-500.0,0.00024658,2]
[357472956,1744078267870,-500.0,0.00024658,2]
[357472957,1744078267880,-500.0,0.00024658,2]
[357472958,1744078267891,-500.0,0.00024658,2]
[357472959,1744078267900,-500.0,0.00024658,2]
[357472960,1744078267911,-500.0,0.00024658,2]
[357472961,1744078267921,-500.0,0.00024658,2]
[357472962,1744078267931,-500.0,0.00024658,2]
[357472963,1744078267941,-500.0,0.00024658,2]
[357472964,1744078267952,-500.0,0.00024658,2]
[357472965,1744078267963,-500.0,0.00024658,2]
[357472966,1744078267974,-500.0,0.00024658,2]
[357472967,1744078267985,-500.0,0.00024658,2]
[357472968,1744078267995,-500.0,0.00024658,2]
[357472969,1744078268006,-500.0,0.00024658,2]
[357472970,1744078268018,-500.0,0.00024658,2]
[357472971,1744078268029,-500.0,0.00024658,2]
[357472972,1744078268041,-500.0,0.00024658,2]
[357472973,1744078268051,-500.0,0.00024658,2]
[357472974,1744078268062,-500.0,0.00024658,2]
[357472975,1744078268073,-500.0,0.00024658,2]
[357472976,1744078268084,-500.0,0.00024658,2]
[357472977,1744078268094,-500.0,0.00024658,2]
[357472978,1744078268105,-500.0,0.00024658,2]
[357472979,1744078268115,-500.0,0.00024658,2]
[357472980,1744078268131,-437.08165054,0.00024658,2]
[357472981,1744078268141,-500.0,0.00024658,2]
[357472982,1744078268153,-500.0,0.00024658,2]
[357472983,1744078268164,-500.0,0.00024658,2]
[357472984,1744078268175,-500.0,0.00024658,2]
[357472985,1744078268185,-500.0,0.00024658,2]
[357472986,1744078268196,-500.0,0.00024658,2]
[357472987,1744078268207,-500.0,0.00024658,2]
[357472988,1744078268217,-500.0,0.00024658,2]
[357472989,1744078268228,-500.0,0.00024658,2]
[357472990,1744078268238,-500.0,0.00024658,2]
[357472991,1744078268249,-343.70816506,0.00024658,2]
[357472992,1744078268259,-500.0,0.00024658,2]
[357472993,1744078268269,-500.0,0.00024658,2]
[357472994,1744078268280,-500.0,0.00024658,2]
[357472995,1744078268291,-500.0,0.00024658,2]
[357472996,1744078268303,-500.0,0.00024658,2]
[357472997,1744078268314,-500.0,0.00024658,2]
[357472998,1744078268323,-500.0,0.00024658,2]
[357472999,1744078268334,-500.0,0.00024658,2]
[357473000,1744078268344,-500.0,0.00024658,2]
[357473001,1744078268355,-500.0,0.00024658,2]
[357473002,1744078268366,-500.0,0.00024658,2]
[357473003,1744078268377,-151.0,0.00024658,7]
[357473004,1744078268388,-151.0,0.00024658,7]
[357473005,1744078268398,-151.0,0.00024658,7]
[357473006,1744078268408,-151.0,0.00024658,7]
[357473007,1744078268418,-151.0,0.00024658,7]
[357473008,1744078268428,-151.0,0.00024658,7]
[357473009,1744078268439,-151.0,0.00024658,7]
[357473010,1744078268450,-151.0,0.00024658,2]
[357473011,1744078268460,-3000.0,0.000248,2]
[357473012,1744078268470,-151.0,0.000248,7]
[357473013,1744078268481,-151.0,0.000248,7]
[357473014,1744078268491,-293.890942,0.000248,7]
[357473015,1744078268501,-151.0,0.000248,7]
[357473016,1744078268511,-291.11115,0.000248,7]
[357473017,1744078268522,-151.0,0.000248,7]
[357473018,1744078268532,-151.0,0.000248,7]
[357473019,1744078268542,-3000.0,0.0002481,2]
[357473020,1744078268553,-3000.0,0.0002482,2]
[357473021,1744078268563,-3000.0,0.0002483,2]
[357473022,1744078268573,-3000.0,0.0002484,2]
[357473023,1744078268583,-3000.0,0.0002485,2]
[357473024,1744078268593,-3000.0,0.0002486,2]
[357473025,1744078268603,-3000.0,0.0002487,2]
[357473026,1744078268613,-3000.0,0.0002488,2]
[357473027,1744078268626,-3000.0,0.0002489,2]
[357473028,1744078268636,-3000.0,0.000249,2]
[357473029,1744078268646,-151.0,0.000249,7]
[357473030,1744078268657,-151.183217,0.000249,7]
[357473031,1744078268668,-151.0,0.000249,7]
[357473032,1744078268678,-190.802693,0.000249,2]
[357473033,1744078268688,-190.802693,0.000249,2]
[357473034,1744078268699,-253.205421,0.000249,7]
[357473035,1744078268709,-253.205421,0.000249,7]
[357473036,1744078268719,-151.699805,0.000249,7]
[357473037,1744078268729,-170.115565,0.000249,7]
[357473038,1744078268739,-170.115565,0.000249,7]
[357473039,1744078268750,-290.919118,0.000249,7]
[357473040,1744078268760,-290.919118,0.000249,7]
[357473041,1744078268771,-201.220329,0.000249,7]
[357473042,1744078268781,-151.0,0.000249,7]
[357473043,1744078268791,-151.0,0.000249,7]
[357473044,1744078268801,-151.0,0.000249,7]
[357473045,1744078268812,-151.0,0.000249,7]
[357473046,1744078268822,-521.80983,0.000249,7]
[357473047,1744078268833,-521.80983,0.000249,7]
[357473048,1744078268843,-444680.288757,0.000249,2]
[357473049,1744078268853,-3000.0,0.0002491,2]
[357473050,1744078268864,-3000.0,0.0002492,2]
[357473051,1744078268875,-3000.0,0.0002493,2]
[357473052,1744078268885,-151.0,0.0002493,7]
[357473053,1744078268896,-151.0,0.0002493,7]
[357473054,1744078268905,-500.0,0.00024931,2]
[357473055,1744078268915,-500.0,0.00024931,2]
[357473056,1744078268924,-500.0,0.00024931,2]
[357473057,1744078268934,-500.0,0.00024931,2]
[357473058,1744078268943,-382.26017431,0.00024931,2]
[357473059,1744078268952,-523.03,0.00024931,2]
[357473060,1744078268962,-568.94,0.00024931,2]
[357473061,1744078268971,-500.0,0.00024931,2]
[357473062,1744078268981,-500.0,0.00024931,2]
[357473063,1744078269044,-500.0,0.00024931,2]
[357473064,1744078269055,-500.0,0.00024931,2]
[357473065,1744078269065,-500.0,0.00024931,2]
[357473066,1744078269075,-500.0,0.00024931,2]
[357473067,1744078269086,-500.0,0.00024931,2]
[357473068,1744078269096,-500.0,0.00024931,2]
[357473069,1744078269105,-500.0,0.00024931,2]
[357473070,1744078269114,-500.0,0.00024931,2]
[357473071,1744078269127,-500.0,0.00024931,2]
[357473072,1744078269136,-500.0,0.00024931,2]
[357473073,1744078269145,-493.0237905,0.00024931,2]
[357473074,1744078269155,-655.89,0.00024931,2]
[357473075,1744078269164,-617.55,0.00024931,2]
[357473076,1744078269174,-500.0,0.00024931,2]
[357473077,1744078269184,-500.0,0.00024931,2]
[357473078,1744078269193,-500.0,0.00024931,2]
[357473079,1744078269202,-741.86,0.00024931,2]
[357473080,1744078269212,-500.0,0.00024931,2]
[357473081,1744078269221,-647.06,0.00024931,2]
[357473082,1744078269231,-311.71871736,0.00024931,2]
[357473083,1744078269240,-500.11,0.00024931,2]
[357473084,1744078269249,-500.0,0.00024931,2]
[357473085,1744078269258,-500.0,0.00024931,2]
[357473086,1744078269268,-527.31,0.00024931,2]
[357473087,1744078269277,-500.0,0.00024931,2]
[357473088,1744078269287,-518.27311909,0.00024931,2]
[357473089,1744078269298,-500.0,0.00024931,2]
[357473090,1744078269309,-777.63,0.00024931,2]
[357473091,1744078269319,-1500.08,0.00024931,2]
[357473092,1744078269328,-613.81134438,0.00024931,2]
[357473093,1744078269337,-500.0,0.00024931,2]
[357473094,1744078269346,-500.0,0.00024931,2]
[357473095,1744078269355,-591.40586613,0.00024931,2]
[357473096,1744078269366,-1208.47,0.00024931,2]
[357473097,1744078269377,-554.86,0.00024931,2]
[357473098,1744078269387,-831.74,0.00024931,2]
[357473099,1744078269396,-1054.4,0.00024931,2]
[357473100,1744078269405,-951.68,0.00024931,2]
[357473101,1744078269414,-500.0,0.00024931,2]
[357473102,1744078269423,-500.0,0.00024931,2]
[357473103,1744078269433,-1393.1,0.00024931,2]
[357473104,1744078269443,-500.0,0.00024931,2]
[357473105,1744078269452,-500.0,0.00024931,2]
[357473106,1744078269462,-526.21,0.00024931,2]
[357473107,1744078269471,-500.0,0.00024931,2]
[357473108,1744078269481,-572.22,0.00024931,2]
[357473109,1744078269491,-1780.71,0.00024931,2]
[357473110,1744078269502,-836.02,0.00024931,2]
[357473111,1744078269511,-500.0,0.00024931,2]
[357473112,1744078269520,-1353.37,0.00024931,2]
[357473113,1744078269530,-500.0,0.00024931,2]
[357473114,1744078269539,-500.0,0.00024931,2]
[357473115,1744078269548,-500.0,0.00024931,2]
[357473116,1744078269557,-500.0,0.00024931,2]
[357473117,1744078269567,-500.0,0.00024931,2]
[357473118,1744078269576,-1092.41,0.00024931,2]
[357473119,1744078269585,-500.0,0.00024931,2]
[357473120,1744078269595,-1778.04,0.00024931,2]
[357473121,1744078269605,-500.0,0.00024931,2]
[357473122,1744078269614,-694.6,0.00024931,2]
[357473123,1744078269627,-524.96,0.00024931,2]
[357473124,1744078269636,-534.14,0.00024931,2]
[357473125,1744078269647,-1276.21,0.00024931,2]
[357473126,1744078269657,-500.0,0.00024931,2]
[357473127,1744078269667,-500.0,0.00024931,2]
[357473128,1744078269677,-2859.43,0.00024931,2]
[357473129,1744078269688,-1340.54,0.00024931,2]
[357473130,1744078269698,-542.01,0.00024931,2]
[357473131,1744078269707,-500.0,0.00024931,2]
[357473132,1744078269718,-2076.71,0.00024931,2]
[357473133,1744078269727,-730.76,0.00024931,2]
[357473134,1744078269737,-500.0,0.00024931,2]
[357473135,1744078269747,-500.0,0.00024931,2]
[357473136,1744078269757,-500.0,0.00024931,2]
[357473137,1744078269767,-1162.69,0.00024931,2]
[357473138,1744078269777,-500.0,0.00024931,2]
[357473139,1744078269787,-500.0,0.00024931,2]
[357473140,1744078269797,-500.0,0.00024931,2]
[357473141,1744078269807,-194.77358534,0.00024931,2]
[357473142,1744078269818,-1701.69,0.00024931,2]
[357473143,1744078269828,-1335.7,0.00024931,2]
[357473144,1744078269838,-1873.27,0.00024931,2]
[357473145,1744078269849,-500.0,0.00024931,2]
[357473146,1744078269859,-500.0,0.00024931,2]
[357473147,1744078269874,-601.69,0.00024931,2]
[357473148,1744078269884,-5360.0,0.00024931,2]
[357473149,1744078269895,-771.06,0.00024931,2]
[357473150,1744078269905,-500.0,0.00024931,2]
[357473151,1744078269916,-500.0,0.00024931,2]
[357473152,1744078269926,-1134.35,0.00024931,2]
[357473153,1744078269936,-1513.16,0.00024931,2]
[357473154,1744078269946,-500.0,0.00024931,2]
[357473155,1744078269956,-1868.62,0.00024931,2]
[357473156,1744078269966,-1268.13,0.00024931,2]
[357473157,1744078269976,-500.0,0.00024931,2]
[357473158,1744078269986,-500.0,0.00024931,2]
[357473159,1744078269995,-727.74,0.00024931,2]
[357473160,1744078270006,-151.0,0.00024931,7]
[357473161,1744078270016,-1073.11,0.00024931,2]
[357473162,1744078270025,-500.0,0.00024931,2]
[357473163,1744078270035,-1878.37,0.00024931,2]
[357473164,1744078270046,-500.0,0.00024931,2]
[357473165,1744078270056,-500.0,0.00024931,2]
[357473166,1744078270066,-1915.21,0.00024931,2]
[357473167,1744078270077,-561.08,0.00024931,2]
[357473168,1744078270088,-2337.51,0.00024931,2]
[357473169,1744078270101,-467.31502899,0.00024931,2]
[357473170,1744078270111,-590.76,0.00024931,2]
[357473171,1744078270127,-500.0,0.00024931,2]
[357473172,1744078270137,-500.0,0.00024931,2]
[357473173,1744078270147,-1291.27,0.00024931,2]
[357473174,1744078270157,-500.0,0.00024931,2]
[357473175,1744078270167,-1180.34,0.00024931,2]
[357473176,1744078270177,-1165.83,0.00024931,2]
[357473177,1744078270187,-2979.5,0.00024931,2]
[357473178,1744078270198,-1531.45,0.00024931,2]
[357473179,1744078270208,-500.0,0.00024931,2]
[357473180,1744078270218,-500.0,0.00024931,2]
[357473181,1744078270228,-1118.42,0.00024931,2]
[357473182,1744078270238,-1109.48,0.00024931,2]
[357473183,1744078270249,-500.0,0.00024931,2]
[357473184,1744078270259,-500.0,0.00024931,2]
[357473185,1744078270269,-500.0,0.00024931,2]
[357473186,1744078270286,-151.0,0.00024931,7]
[357473187,1744078270306,-2935.5,0.00024931,2]
[357473188,1744078270326,-205.79063171,0.00024931,2]
[357473189,1744078270336,-500.0,0.00024931,2]
[357473190,1744078270346,-1602.29,0.00024931,2]
[357473191,1744078270357,-500.0,0.00024931,2]
[357473192,1744078270369,-602.81,0.00024931,2]
[357473193,1744078270380,-2426.96,0.00024931,2]
[357473194,1744078270390,-720.44,0.00024931,2]
[357473195,1744078270400,-853.03,0.00024931,2]
[357473196,1744078270410,-500.0,0.00024931,2]
[357473197,1744078270420,-1619.33,0.00024931,2]
[357473198,1744078270430,-1136.31,0.00024931,2]
[357473199,1744078270440,-151.0,0.00024931,7]
[357473200,1744078270450,-1240.57,0.00024931,2]
[357473201,1744078270461,-795.94,0.00024931,2]
[357473202,1744078270472,-235.22656,0.00024931,7]
[357473203,1744078270482,-151.0,0.00024931,7]
[357473204,1744078270493,-151.0,0.00024931,2]
[357473205,1744078270503,-500.0,0.00024931,2]
[357473206,1744078270514,-500.0,0.00024931,2]
[357473207,1744078270524,-2114.72,0.00024931,2]
[357473208,1744078270534,-151.0,0.00024931,7]
[357473209,1744078270545,-1182.11,0.00024931,2]
[357473210,1744078270555,-500.0,0.00024931,2]
[357473211,1744078270566,-503.7,0.00024931,2]
[357473212,1744078270577,-8763.46,0.00024931,2]
[357473213,1744078270588,-500.0,0.00024931,2]
[357473214,1744078270599,-500.0,0.00024931,2]
[357473215,1744078270610,-1130.38,0.00024931,2]
[357473216,1744078270625,-500.0,0.00024931,2]
[357473217,1744078270637,-3000.0,0.0002494,2]
[357473218,1744078270647,-4367.7928,0.0002495,2]
[357473219,1744078270658,-500.0,0.00025,2]
[357473220,1744078270669,-500.0,0.00025205,2]
[357473221,1744078270681,-292.88364408,0.00025205,2]
[357473222,1744078270691,-209.40938492,0.00025205,2]
[357473223,1744078270702,-500.0,0.00025205,2]
[357473224,1744078270712,-523.03,0.00025205,2]
[357473225,1744078270722,-568.94,0.00025205,2]
[357473226,1744078270732,-500.0,0.00025205,2]
[357473227,1744078270743,-500.0,0.00025205,2]
[357473228,1744078270753,-500.0,0.00025205,2]
[357473229,1744078270764,-500.0,0.00025205,2]
[357473230,1744078270775,-500.0,0.00025205,2]
[357473231,1744078270784,-500.0,0.00025205,2]
[357473232,1744078270795,-500.0,0.00025205,2]
[357473233,1744078270805,-500.0,0.00025205,2]
[357473234,1744078270815,-500.0,0.00025205,2]
[357473235,1744078270825,-223.6834008,0.00025205,2]
[357473236,1744078270836,-555.41126435,0.00025205,2]
[357473237,1744078270846,-500.0,0.00025205,2]
[357473238,1744078270857,-655.89,0.00025205,2]
[357473239,1744078270867,-617.55,0.00025205,2]
[357473240,1744078270878,-500.0,0.00025205,2]
[357473241,1744078270888,-500.0,0.00025205,2]
[357473242,1744078270898,-500.0,0.00025205,2]
[357473243,1744078270908,-741.86,0.00025205,2]
[357473244,1744078270919,-500.0,0.00025205,2]
[357473245,1744078270930,-647.06,0.00025205,2]
[357473246,1744078270941,-500.11,0.00025205,2]
[357473247,1744078270951,-500.0,0.00025205,2]
[357473248,1744078270962,-241.15591729,0.00025205,2]
[357473249,1744078270972,-527.31,0.00025205,2]
[357473250,1744078270988,-500.0,0.00025205,2]
[357473251,1744078270999,-500.0,0.00025205,2]
[357473252,1744078271010,-777.63,0.00025205,2]
[357473253,1744078271020,-1500.08,0.00025205,2]
[357473254,1744078271031,-500.0,0.00025205,2]
[357473255,1744078271042,-500.0,0.00025205,2]
[357473256,1744078271052,-1208.47,0.00025205,2]
[357473257,1744078271063,-554.86,0.00025205,2]
[357473258,1744078271074,-831.74,0.00025205,2]
[357473259,1744078271083,-1054.4,0.00025205,2]
[357473260,1744078271093,-951.68,0.00025205,2]
[357473261,1744078271103,-500.0,0.00025205,2]
[357473262,1744078271113,-533.95825635,0.00025205,2]
[357473263,1744078271125,-1393.1,0.00025205,2]
[357473264,1744078271135,-500.0,0.00025205,2]
[357473265,1744078271145,-500.0,0.00025205,2]
[357473266,1744078271156,-526.21,0.00025205,2]
[357473267,1744078271166,-500.0,0.00025205,2]
[357473268,1744078271176,-572.22,0.00025205,2]
[357473269,1744078271186,-1780.71,0.00025205,2]
[357473270,1744078271197,-836.02,0.00025205,2]
[357473271,1744078271208,-500.0,0.00025205,2]
[357473272,1744078271217,-1353.37,0.00025205,2]
[357473273,1744078271227,-500.0,0.00025205,2]
[357473274,1744078271237,-526.33418358,0.00025205,2]
[357473275,1744078271248,-500.0,0.00025205,2]
[357473276,1744078271258,-500.0,0.00025205,2]
[357473277,1744078271269,-500.0,0.00025205,2]
[357473278,1744078271279,-1092.41,0.00025205,2]
[357473279,1744078271290,-500.0,0.00025205,2]
[357473280,1744078271304,-1778.04,0.00025205,2]
[357473281,1744078271314,-500.0,0.00025205,2]
[357473282,1744078271325,-694.6,0.00025205,2]
[357473283,1744078271336,-524.96,0.00025205,2]
[357473284,1744078271347,-534.14,0.00025205,2]
[357473285,1744078271357,-1276.21,0.00025205,2]
[357473286,1744078271367,-500.0,0.00025205,2]
[357473287,1744078271380,-500.0,0.00025205,2]
[357473288,1744078271391,-2859.43,0.00025205,2]
[357473289,1744078271401,-1340.54,0.00025205,2]
[357473290,1744078271411,-542.01,0.00025205,2]
[357473291,1744078271422,-500.0,0.00025205,2]
[357473292,1744078271432,-2076.71,0.00025205,2]
[357473293,1744078271443,-730.76,0.00025205,2]
[357473294,1744078271453,-500.0,0.00025205,2]
[357473295,1744078271463,-500.0,0.00025205,2]
[357473296,1744078271474,-500.0,0.00025205,2]
[357473297,1744078271485,-1162.69,0.00025205,2]
[357473298,1744078271496,-500.0,0.00025205,2]
[357473299,1744078271506,-500.0,0.00025205,2]
[357473300,1744078271516,-500.0,0.00025205,2]
[357473301,1744078271527,-1701.69,0.00025205,2]
[357473302,1744078271537,-1335.7,0.00025205,2]
[357473303,1744078271548,-1873.27,0.00025205,2]
[357473304,1744078271559,-500.0,0.00025205,2]
[357473305,1744078271570,-500.0,0.00025205,2]
[357473306,1744078271581,-601.69,0.00025205,2]
[357473307,1744078271592,-5360.0,0.00025205,2]
[357473308,1744078271602,-771.06,0.00025205,2]
[357473309,1744078271612,-500.0,0.00025205,2]
[357473310,1744078271624,-500.0,0.00025205,2]
[357473311,1744078271635,-1134.35,0.00025205,2]
[357473312,1744078271646,-1513.16,0.00025205,2]
[357473313,1744078271656,-500.0,0.00025205,2]
[357473314,1744078271667,-1868.62,0.00025205,2]
[357473315,1744078271678,-1268.13,0.00025205,2]
[357473316,1744078271688,-500.0,0.00025205,2]
[357473317,1744078271699,-500.0,0.00025205,2]
[357473318,1744078271710,-727.74,0.00025205,2]
[357473319,1744078271720,-1073.11,0.00025205,2]
[357473320,1744078271731,-500.0,0.00025205,2]
[357473321,1744078271742,-1878.37,0.00025205,2]
[357473322,1744078271753,-500.0,0.00025205,2]
[357473323,1744078271763,-500.0,0.00025205,2]
[357473324,1744078271774,-1915.21,0.00025205,2]
[357473325,1744078271785,-561.08,0.00025205,2]
[357473326,1744078271796,-2337.51,0.00025205,2]
[357473327,1744078271807,-590.76,0.00025205,2]
[357473328,1744078271817,-500.0,0.00025205,2]
[357473329,1744078271828,-500.0,0.00025205,2]
[357473330,1744078271839,-1291.27,0.00025205,2]
[357473331,1744078271850,-500.0,0.00025205,2]
[357473332,1744078271860,-1180.34,0.00025205,2]
[357473333,1744078271870,-1165.83,0.00025205,2]